fUSD/lending_fUSD_20240215
["ID","MTS","AMOUNT","RATE_DAILY","PERIOD"]
[314142839,1708019493634,-500.0,0.00040273,7]
[314142840,1708019493645,-1297.24,0.00040273,7]
[314142841,1708019493655,-225.81153489,0.00040273,7]
[314142842,1708019493665,-500.0,0.00040273,7]
[314142843,1708019493674,-500.0,0.00040273,7]
[314142844,1708019493685,-500.0,0.00040273,7]
[314142845,1708019493695,-2776.05,0.00040273,7]
[314142846,1708019493705,-4055.04,0.00040273,7]
[314142847,1708019493715,-500.0,0.00040273,7]
[314142848,1708019493725,-4988.27,0.00040273,7]
[314142849,1708019493735,-500.0,0.00040273,7]
[314142850,1708019493745,-500.0,0.00040273,7]
[314142851,1708019493756,-1472.71,0.00040273,7]
[314142852,1708019493767,-500.0,0.00040273,7]
[314142853,1708019493777,-500.0,0.00040273,7]
[314142854,1708019493787,-500.0,0.00040273,7]
[314142855,1708019493798,-1663.68,0.00040273,7]
[314142856,1708019493808,-500.0,0.00040273,7]
[314142857,1708019493818,-4949.84,0.00040273,7]
[314142858,1708019493828,-1970.1,0.00040273,7]
[314142859,1708019493838,-1101.62,0.00040273,7]
[314142860,1708019493847,-891.01,0.00040273,7]
[314142861,1708019493857,-500.0,0.00040273,7]
[314142862,1708019493867,-1111.21,0.00040273,7]
[314142863,1708019493877,-500.0,0.00040273,7]
[314142864,1708019493887,-1055.37,0.00040273,7]
[314142865,1708019493897,-500.0,0.00040273,7]
[314142866,1708019493907,-1203.88,0.00040273,7]
[314142867,1708019493918,-1292.58,0.00040273,7]
[314142868,1708019493928,-735.16,0.00040273,7]
[314142869,1708019493938,-996.39,0.00040273,7]
[314142870,1708019493949,-2325.06,0.00040273,7]
[314142871,1708019493958,-500.0,0.00040273,7]
[314142872,1708019493969,-500.0,0.00040273,7]
[314142873,1708019493978,-500.0,0.00040273,7]
[314142874,1708019493989,-500.0,0.00040273,7]
[314142875,1708019493999,-435.74,0.00040273,7]
[314142876,1708019494009,-5038.29,0.00040273,7]
[314142877,1708019494021,-500.0,0.00040273,7]
[314142878,1708019494031,-765.74,0.00040273,7]
[314142879,1708019494041,-500.0,0.00040273,7]
[314142880,1708019494051,-500.0,0.00040273,7]
[314142881,1708019494062,-569.41,0.00040273,7]
[314142882,1708019494072,-500.0,0.00040273,7]
[314142883,1708019494082,-4016.58,0.00040273,7]
[314142884,1708019494093,-524.19,0.00040273,7]
[314142885,1708019494103,-500.0,0.00040273,7]
[314142886,1708019494115,-1145.21,0.00040273,7]
[314142887,1708019494125,-836.92,0.00040273,7]
[314142888,1708019494134,-500.0,0.00040273,7]
[314142889,1708019494145,-686.87,0.00040273,7]
[314142890,1708019494155,-619.17,0.00040273,7]
[314142891,1708019494166,-455.67834065,0.00040273,7]
[314142892,1708019494177,-500.0,0.00040273,7]
[314142893,1708019494187,-500.0,0.00040273,7]
[314142894,1708019494396,-1463.4,0.00040273,7]
[314142895,1708019494407,-437.57,0.00040273,7]
[314142896,1708019494418,-713.6,0.00040273,7]
[314142897,1708019494429,-3254.19,0.00040273,7]
[314142898,1708019494439,-607.96,0.00040273,7]
[314142899,1708019494449,-500.0,0.00040273,7]
[314142900,1708019494463,-556.07,0.00040273,7]
[314142901,1708019494473,-500.0,0.00040273,7]
[314142902,1708019494485,-500.0,0.00040273,7]
[314142903,1708019494495,-500.0,0.00040273,7]
[314142904,1708019494506,-500.0,0.00040273,7]
[314142905,1708019494516,-500.0,0.00040273,7]
[314142906,1708019494526,-1450.92,0.00040273,7]
[314142907,1708019494536,-553.92,0.00040273,7]
[314142908,1708019494546,-1417.47,0.00040273,7]
[314142909,1708019494556,-500.0,0.00040273,7]
[314142910,1708019494566,-2730.4,0.00040273,7]
[314142911,1708019494576,-585.8,0.00040273,7]
[314142912,1708019494586,-5934.21,0.00040273,7]
[314142913,1708019494596,-633.51,0.00040273,7]
[314142914,1708019494606,-1019.85,0.00040273,7]
[314142915,1708019494616,-701.09,0.00040273,7]
[314142916,1708019494625,-500.0,0.00040273,7]
[314142917,1708019494635,-1857.32,0.00040273,7]
[314142918,1708019494644,-3563.59,0.00040273,7]
[314142919,1708019494653,-500.0,0.00040273,7]
[314142920,1708019494664,-4513.55,0.00040273,7]
[314142921,1708019494674,-500.0,0.00040273,7]
[314142922,1708019494683,-500.0,0.00040273,7]
[314142923,1708019494692,-1548.7,0.00040273,7]
[314142924,1708019494702,-500.0,0.00040273,7]
[314142925,1708019494712,-707.65,0.00040273,2]
[314142926,1708019494722,-1098.48,0.00040273,7]
[314142927,1708019494732,-6547.24,0.00040273,7]
[314142928,1708019494742,-500.0,0.00040273,7]
[314142929,1708019494752,-995.72,0.00040273,7]
[314142930,1708019494762,-993.29,0.00040273,7]
[314142931,1708019494774,-500.0,0.00040273,7]
[314142932,1708019494784,-500.0,0.00040273,7]
[314142933,1708019494795,-47725.72,0.00040273,7]
[314142934,1708019494805,-1324.67,0.00040273,7]
[314142935,1708019494815,-5000.54,0.00040273,7]
[314142936,1708019494825,-319.45144461,0.00040273,7]
[314142937,1708019494835,-1048.47,0.00040273,7]
[314142938,1708019494845,-1233.71,0.00040273,7]
[314142939,1708019494855,-2120.05,0.00040273,7]
[314142940,1708019494866,-3896.96,0.00040273,7]
[314142941,1708019494875,-552.81,0.00040273,7]
[314142942,1708019494886,-500.0,0.00040273,7]
[314142943,1708019494896,-4265.71,0.00040273,7]
[314142944,1708019494906,-500.0,0.00040273,7]
[314142945,1708019494917,-724.89,0.00040273,7]
[314142946,1708019494927,-426.0362836,0.00040273,7]
[314142947,1708019494937,-588.09,0.00040273,7]
[314142948,1708019494947,-9575.52,0.00040273,7]
[314142949,1708019494957,-513.7,0.00040273,7]
[314142950,1708019494967,-500.0,0.00040273,7]
[314142951,1708019494976,-2093.78,0.00040273,7]
[314142952,1708019494986,-150.0,0.00040282,3]
[314142953,1708019494997,-183.55112146,0.00040289,30]
[314142954,1708019495007,-200.0,0.000403,14]
[314142955,1708019495018,-2114.35,0.000403,7]
[314142956,1708019495028,-1000.0,0.000403,2]
[314142957,1708019495039,-1030.0,0.000403,42]
[314142958,1708019495049,-200.0,0.000403,15]
[314142959,1708019495060,-3704.05,0.00040323,2]
[314142960,1708019495070,-152.77622427,0.00040329,7]
[314142961,1708019495081,-302.608365,0.00040331,2]
[314142962,1708019495092,-150.0,0.00040331,2]
[314142963,1708019495103,-2281.099806,0.00040331,2]
[314142964,1708019495114,-315.499401,0.00040331,2]
[314142965,1708019495125,-174.252584,0.00040331,2]
[314142966,1708019495136,-168.115759,0.00040331,2]
[314142967,1708019495147,-168.115759,0.00040331,2]
[314142968,1708019495159,-164.538502,0.00040331,2]
[314142969,1708019495170,-151.18119458,0.00040369,30]
[314142970,1708019495181,-150.0,0.00040375,2]
[314142971,1708019495192,-6658.31173517,0.00040399,14]
[314142972,1708019495203,-2627.12749563,0.000404,40]
[314142973,1708019495213,-200.0,0.000404,30]
[314142974,1708019495224,-6511.83,0.0004041,7]
[314142975,1708019495234,-6511.83,0.0004041,7]
[314142976,1708019495245,-150.0,0.00040423,3]
[314142977,1708019495255,-15700.82330474,0.0004044,12]
[314142978,1708019495266,-151.021518,0.00040448,21]
[314142979,1708019495278,-500.0,0.00040464,7]
[314142980,1708019495289,-151.0,0.0004047,7]
[314142981,1708019495299,-151.18119458,0.0004048,30]
[314142982,1708019495311,-156.94234784,0.00040484,30]
[314142983,1708019495321,-150.13706,0.0004049,2]
[314142984,1708019495332,-152.0556,0.0004049,2]
[314142985,1708019495342,-151.021518,0.00040498,20]
[314142986,1708019495353,-905.0,0.000405,40]
[314142987,1708019495363,-199.0,0.000405,3]
[314142988,1708019495373,-2998.41,0.000405,7]
[314142989,1708019495384,-2160.89,0.000405,7]
[314142990,1708019495394,-6499.999999,0.000405,15]
[314142991,1708019495405,-2110.0,0.000405,15]
[314142992,1708019495416,-152.77622427,0.00040526,8]
[314142993,1708019495427,-159.53892364,0.00040537,30]
[314142994,1708019495438,-500.0,0.00040547,7]
[314142995,1708019495452,-541.83,0.00040547,7]
[314142996,1708019495463,-500.0,0.00040547,7]
[314142997,1708019495473,-500.0,0.00040547,7]
[314142998,1708019495484,-530.12,0.00040547,7]
[314142999,1708019495495,-856.02,0.00040547,7]
[314143000,1708019495505,-500.0,0.00040547,7]
[314143001,1708019495515,-356.30775455,0.00040547,7]
[314143002,1708019495528,-500.0,0.00040547,7]
[314143003,1708019495538,-500.0,0.00040547,7]
[314143004,1708019495549,-500.0,0.00040547,7]
[314143005,1708019495558,-500.0,0.00040547,7]
[314143006,1708019495568,-500.0,0.00040547,7]
[314143007,1708019495578,-500.0,0.00040547,7]
[314143008,1708019495587,-565.23928411,0.00040547,7]
[314143009,1708019495598,-550.0,0.00040547,7]
[314143010,1708019495612,-756.7,0.00040547,7]
[314143011,1708019495623,-704.22,0.00040547,7]
[314143012,1708019495634,-500.0,0.00040547,7]
[314143013,1708019495645,-168.85433874,0.00040547,7]
[314143014,1708019495656,-500.0,0.00040547,7]
[314143015,1708019495666,-1361.43,0.00040547,7]
[314143016,1708019495676,-500.0,0.00040547,7]
[314143017,1708019495686,-500.0,0.00040547,7]
[314143018,1708019495697,-500.0,0.00040547,7]
[314143019,1708019495707,-1000.0,0.00040547,7]
[314143020,1708019495718,-500.0,0.00040547,7]
[314143021,1708019495728,-506.26135037,0.00040547,7]
[314143022,1708019495738,-1271.29,0.00040547,7]
[314143023,1708019495747,-289.75493882,0.00040547,7]
[314143024,1708019495758,-500.0,0.00040547,7]
[314143025,1708019495769,-598.49,0.00040547,7]
[314143026,1708019495779,-500.0,0.00040547,7]
[314143027,1708019495790,-974.33,0.00040547,7]
[314143028,1708019495800,-500.0,0.00040547,7]
[314143029,1708019495810,-500.0,0.00040547,7]
[314143030,1708019495820,-500.0,0.00040547,7]
[314143031,1708019495830,-500.0,0.00040547,7]
[314143032,1708019495841,-500.0,0.00040547,7]
[314143033,1708019495851,-500.0,0.00040547,7]
[314143034,1708019495861,-500.0,0.00040547,7]
[314143035,1708019495872,-500.0,0.00040547,7]
[314143036,1708019495882,-693.16,0.00040547,7]
[314143037,1708019495892,-500.0,0.00040547,7]
[314143038,1708019495902,-500.0,0.00040547,7]
[314143039,1708019495916,-458.99884492,0.00040547,7]
[314143040,1708019495926,-177.14,0.00040547,7]
[314143041,1708019495937,-500.0,0.00040547,7]
[314143042,1708019495948,-1893.96,0.00040547,7]
[314143043,1708019495958,-1000.0,0.00040547,7]
[314143044,1708019495969,-500.0,0.00040547,7]
[314143045,1708019495980,-564.89,0.00040547,7]
[314143046,1708019495990,-824.46,0.00040547,7]
[314143047,1708019496000,-616.25,0.00040547,7]
[314143048,1708019496011,-445.06492072,0.00040547,7]
[314143049,1708019496023,-500.0,0.00040547,7]
[314143050,1708019496034,-793.39,0.00040547,7]
[314143051,1708019496044,-649.79,0.00040547,7]
[314143052,1708019496055,-500.0,0.00040547,7]
[314143053,1708019496065,-536.14,0.00040547,2]
[314143054,1708019496076,-500.0,0.00040547,7]
[314143055,1708019496087,-500.0,0.00040547,7]
[314143056,1708019496098,-500.0,0.00040547,7]
[314143057,1708019496109,-500.0,0.00040547,7]
[314143058,1708019496120,-500.0,0.00040547,7]
[314143059,1708019496130,-500.0,0.00040547,7]
[314143060,1708019496141,-500.0,0.00040547,7]
[314143061,1708019496152,-500.0,0.00040547,7]
[314143062,1708019496163,-1207.79,0.00040547,7]
[314143063,1708019496173,-500.0,0.00040547,7]
[314143064,1708019496184,-500.0,0.00040547,7]
[314143065,1708019496195,-500.0,0.00040547,7]
[314143066,1708019496206,-734.84,0.00040547,2]
[314143067,1708019496217,-500.0,0.00040547,7]
[314143068,1708019496227,-1247.33,0.00040547,7]
[314143069,1708019496238,-372.62292501,0.00040547,7]
[314143070,1708019496248,-500.0,0.00040547,7]
[314143071,1708019496259,-500.0,0.00040547,7]
[314143072,1708019496271,-500.0,0.00040547,7]
[314143073,1708019496281,-500.0,0.00040547,7]
[314143074,1708019496292,-500.0,0.00040547,7]
[314143075,1708019496302,-974.82,0.00040547,7]
[314143076,1708019496315,-1915.49,0.00040547,7]
[314143077,1708019496325,-989.83,0.00040547,7]
[314143078,1708019496336,-3861.24,0.00040547,7]
[314143079,1708019496347,-500.0,0.00040547,7]
[314143080,1708019496358,-500.0,0.00040547,7]
[314143081,1708019496373,-500.0,0.00040547,7]
[314143082,1708019496383,-500.0,0.00040547,7]
[314143083,1708019496393,-500.0,0.00040547,7]
[314143084,1708019496404,-500.0,0.00040547,7]
[314143085,1708019496415,-846.99,0.00040547,7]
[314143086,1708019496425,-500.0,0.00040547,7]
[314143087,1708019496436,-988.14,0.00040547,7]
[314143088,1708019496453,-3759.08,0.00040547,7]
[314143089,1708019496463,-500.0,0.00040547,7]
[314143090,1708019496474,-500.0,0.00040547,7]
[314143091,1708019496484,-500.0,0.00040547,7]
[314143092,1708019496493,-1634.49,0.00040547,7]
[314143093,1708019496504,-500.0,0.00040547,7]
[314143094,1708019496514,-2514.11,0.00040547,7]
[314143095,1708019496527,-500.0,0.00040547,7]
[314143096,1708019496538,-4422.2,0.00040547,7]
[314143097,1708019496548,-500.0,0.00040547,7]
[314143098,1708019496559,-500.0,0.00040547,7]
[314143099,1708019496570,-500.0,0.00040547,7]
[314143100,1708019496580,-663.11,0.00040547,7]
[314143101,1708019496590,-500.0,0.00040547,7]
[314143102,1708019496600,-500.0,0.00040547,7]
[314143103,1708019496610,-775.66,0.00040547,7]
[314143104,1708019496620,-500.0,0.00040547,7]
[314143105,1708019496631,-500.0,0.00040547,2]
[314143106,1708019496642,-500.0,0.00040547,7]
[314143107,1708019496652,-607.71,0.00040547,7]
[314143108,1708019496662,-500.0,0.00040547,7]
[314143109,1708019496671,-500.0,0.00040547,7]
[314143110,1708019496682,-500.0,0.00040547,7]
[314143111,1708019496693,-500.0,0.00040547,7]
[314143112,1708019496703,-500.0,0.00040547,7]
[314143113,1708019496713,-1744.6,0.00040547,7]
[314143114,1708019496724,-912.33,0.00040547,7]
[314143115,1708019496734,-500.0,0.00040547,7]
[314143116,1708019496745,-251.11573939,0.00040547,7]
[314143117,1708019496756,-500.0,0.00040547,7]
[314143118,1708019496766,-500.0,0.00040547,7]
[314143119,1708019496778,-1155.45,0.00040547,7]
[314143120,1708019496787,-1067.47,0.00040547,7]
[314143121,1708019496798,-519.85,0.00040547,7]
[314143122,1708019496808,-4410.01,0.00040547,7]
[314143123,1708019496819,-11001.71,0.00040547,7]
[314143124,1708019496830,-295.93357855,0.00040547,7]
[314143125,1708019496840,-500.0,0.00040547,7]
[314143126,1708019496850,-500.0,0.00040547,7]
[314143127,1708019496861,-3091.91,0.00040547,7]
[314143128,1708019496872,-1258.05,0.00040547,7]
[314143129,1708019496882,-500.0,0.00040547,7]
[314143130,1708019496892,-842.08,0.00040547,7]
[314143131,1708019496903,-922.13,0.00040547,7]
[314143132,1708019496915,-656.01,0.00040547,7]
[314143133,1708019496925,-904.53,0.00040547,7]
[314143134,1708019496935,-3344.4,0.00040547,7]
[314143135,1708019496946,-2961.74,0.00040547,7]
[314143136,1708019496957,-500.0,0.00040547,7]
[314143137,1708019496967,-844.38,0.00040547,7]
[314143138,1708019496977,-500.0,0.00040547,7]
[314143139,1708019496988,-500.0,0.00040547,7]
[314143140,1708019496998,-500.0,0.00040547,7]
[314143141,1708019497008,-500.0,0.00040547,7]
[314143142,1708019497020,-500.0,0.00040547,7]
[314143143,1708019497030,-1428.06,0.00040547,7]
[314143144,1708019497039,-535.86,0.00040547,7]
[314143145,1708019497049,-1125.27,0.00040547,7]
[314143146,1708019497059,-2160.8,0.00040547,7]
[314143147,1708019497070,-500.0,0.00040547,7]
[314143148,1708019497080,-500.0,0.00040547,7]
[314143149,1708019497091,-825.32,0.00040547,7]
[314143150,1708019497101,-537.94,0.00040547,7]
[314143151,1708019497111,-500.0,0.00040547,7]
[314143152,1708019497122,-677.81,0.00040547,7]
[314143153,1708019497132,-500.0,0.00040547,7]
[314143154,1708019497142,-1297.24,0.00040547,7]
[314143155,1708019497153,-500.0,0.00040547,7]
[314143156,1708019497163,-559.07,0.00040547,7]
[314143157,1708019497173,-500.0,0.00040547,7]
[314143158,1708019497183,-500.0,0.00040547,7]
[314143159,1708019497193,-2776.05,0.00040547,7]
[314143160,1708019497204,-4055.04,0.00040547,7]
[314143161,1708019497214,-500.0,0.00040547,7]
[314143162,1708019497224,-4988.27,0.00040547,7]
[314143163,1708019497234,-500.0,0.00040547,7]
[314143164,1708019497244,-1472.71,0.00040547,7]
[314143165,1708019497254,-500.0,0.00040547,7]
[314143166,1708019497264,-500.0,0.00040547,7]
[314143167,1708019497276,-500.0,0.00040547,7]
[314143168,1708019497286,-500.0,0.00040547,7]
[314143169,1708019497296,-1663.68,0.00040547,7]
[314143170,1708019497307,-500.0,0.00040547,7]
[314143171,1708019497317,-4949.84,0.00040547,7]
[314143172,1708019497327,-1970.1,0.00040547,7]
[314143173,1708019497338,-1101.62,0.00040547,7]
[314143174,1708019497348,-891.01,0.00040547,7]
[314143175,1708019497359,-500.0,0.00040547,7]
[314143176,1708019497369,-1111.21,0.00040547,7]
[314143177,1708019497380,-500.0,0.00040547,7]
[314143178,1708019497391,-1055.37,0.00040547,7]
[314143179,1708019497402,-1203.88,0.00040547,7]
[314143180,1708019497417,-500.0,0.00040547,7]
[314143181,1708019497431,-1292.58,0.00040547,7]
[314143182,1708019497442,-735.16,0.00040547,7]
[314143183,1708019497452,-996.39,0.00040547,7]
[314143184,1708019497464,-2325.06,0.00040547,7]
[314143185,1708019497474,-500.0,0.00040547,7]
[314143186,1708019497484,-500.0,0.00040547,7]
[314143187,1708019497495,-500.0,0.00040547,7]
[314143188,1708019497504,-500.0,0.00040547,7]
[314143189,1708019497515,-5038.29,0.00040547,7]
[314143190,1708019497527,-500.0,0.00040547,7]
[314143191,1708019497538,-765.74,0.00040547,7]
[314143192,1708019497549,-500.0,0.00040547,7]
[314143193,1708019497559,-500.0,0.00040547,7]
[314143194,1708019497571,-569.41,0.00040547,7]
[314143195,1708019497582,-500.0,0.00040547,7]
[314143196,1708019497593,-4016.58,0.00040547,7]
[314143197,1708019497604,-524.19,0.00040547,7]
[314143198,1708019497614,-500.0,0.00040547,7]
[314143199,1708019497625,-1145.21,0.00040547,7]
[314143200,1708019497635,-836.92,0.00040547,7]
[314143201,1708019497646,-500.0,0.00040547,7]
[314143202,1708019497656,-686.87,0.00040547,7]
[314143203,1708019497667,-619.17,0.00040547,7]
[314143204,1708019497848,-500.0,0.00040547,7]
[314143205,1708019497859,-533.37983922,0.00040547,7]
[314143206,1708019497869,-1463.4,0.00040547,7]
[314143207,1708019497880,-713.6,0.00040547,7]
[314143208,1708019497890,-3254.19,0.00040547,7]
[314143209,1708019497900,-607.96,0.00040547,7]
[314143210,1708019497912,-500.0,0.00040547,7]
[314143211,1708019497922,-556.07,0.00040547,7]
[314143212,1708019497932,-306.81753342,0.00040547,7]
[314143213,1708019497942,-500.0,0.00040547,7]
[314143214,1708019497953,-500.0,0.00040547,7]
[314143215,1708019497964,-500.0,0.00040547,7]
[314143216,1708019497974,-500.0,0.00040547,7]
[314143217,1708019497985,-1450.92,0.00040547,7]
[314143218,1708019497996,-553.92,0.00040547,7]
[314143219,1708019498006,-1417.47,0.00040547,7]
[314143220,1708019498017,-567.43554307,0.00040547,7]
[314143221,1708019498029,-2730.4,0.00040547,7]
[314143222,1708019498038,-585.8,0.00040547,7]
[314143223,1708019498048,-5934.21,0.00040547,7]
[314143224,1708019498059,-633.51,0.00040547,7]
[314143225,1708019498068,-1019.85,0.00040547,7]
[314143226,1708019498078,-701.09,0.00040547,7]
[314143227,1708019498089,-500.0,0.00040547,7]
[314143228,1708019498099,-1857.32,0.00040547,7]
[314143229,1708019498109,-3563.59,0.00040547,7]
[314143230,1708019498120,-607.72295551,0.00040547,7]
[314143231,1708019498130,-4513.55,0.00040547,7]
[314143232,1708019498140,-500.0,0.00040547,7]
[314143233,1708019498150,-1548.7,0.00040547,7]
[314143234,1708019498160,-500.0,0.00040547,7]
[314143235,1708019498170,-500.0,0.00040547,7]
[314143236,1708019498180,-707.65,0.00040547,2]
[314143237,1708019498190,-1098.48,0.00040547,7]
[314143238,1708019498200,-6547.24,0.00040547,7]
[314143239,1708019498210,-500.0,0.00040547,7]
[314143240,1708019498220,-995.72,0.00040547,7]
[314143241,1708019498231,-993.29,0.00040547,7]
[314143242,1708019498241,-500.0,0.00040547,7]
[314143243,1708019498252,-500.0,0.00040547,7]
[314143244,1708019498261,-47725.72,0.00040547,7]
[314143245,1708019498274,-1324.67,0.00040547,7]
[314143246,1708019498285,-5000.54,0.00040547,7]
[314143247,1708019498296,-1048.47,0.00040547,7]
[314143248,1708019498307,-1233.71,0.00040547,7]
[314143249,1708019498317,-2120.05,0.00040547,7]
[314143250,1708019498328,-3896.96,0.00040547,7]
[314143251,1708019498340,-552.81,0.00040547,7]
[314143252,1708019498351,-500.0,0.00040547,7]
[314143253,1708019498363,-4265.71,0.00040547,7]
[314143254,1708019498374,-500.0,0.00040547,7]
[314143255,1708019498385,-724.89,0.00040547,7]
[314143256,1708019498395,-588.09,0.00040547,7]
[314143257,1708019498406,-9575.52,0.00040547,7]
[314143258,1708019498415,-513.7,0.00040547,7]
[314143259,1708019498425,-500.0,0.00040547,7]
[314143260,1708019498436,-2093.78,0.00040547,7]
[314143261,1708019498447,-853.31,0.00040548,2]
[314143262,1708019498458,-666.27,0.00040548,2]
[314143263,1708019498468,-150.0,0.00040548,2]
[314143264,1708019498479,-150.0,0.00040548,2]
[314143265,1708019498490,-159.96,0.00040548,2]
[314143266,1708019498500,-418.75,0.00040548,2]
[314143267,1708019498510,-837.5,0.00040548,2]
[314143268,1708019498520,-418.75,0.00040548,2]
[314143269,1708019498531,-150.0,0.00040564,3]
[314143270,1708019498542,-178.0,0.0004059,51]
[314143271,1708019498552,-151.18119458,0.00040597,30]
[314143272,1708019498561,-200.0,0.000406,30]
[314143273,1708019498572,-180.0,0.000406,15]
[314143274,1708019498582,-6658.31173517,0.00040606,14]
[314143275,1708019498592,-1605.30624,0.00040646,2]
[314143276,1708019498602,-984.800052,0.00040646,2]
[314143277,1708019498612,-167.648658,0.00040646,2]
[314143278,1708019498622,-182.68545932,0.00040656,30]
[314143279,1708019498632,-500.0,0.00040674,7]
[314143280,1708019498642,-6511.83,0.00040683,7]
[314143281,1708019498652,-6511.83,0.00040683,7]
[314143282,1708019498662,-1002.2874641,0.000407,2]
[314143283,1708019498672,-2114.35,0.000407,7]
[314143284,1708019498682,-183.55112146,0.00040704,30]
[314143285,1708019498693,-150.0,0.00040706,3]
[314143286,1708019498703,-212.0,0.0004072,2]
[314143287,1708019498714,-212.0,0.0004072,2]
[314143288,1708019498724,-209.0,0.0004072,2]
[314143289,1708019498734,-152.77622427,0.00040722,9]
[314143290,1708019498743,-1000.0,0.00040733,2]
[314143291,1708019498754,-8177.0,0.0004074,30]
[314143292,1708019498764,-907.0,0.0004074,30]
[314143293,1708019498774,-151.021518,0.00040748,21]
[314143294,1708019498784,-152.0,0.00040762,4]
[314143295,1708019498794,-156.94234784,0.00040766,30]
[314143296,1708019498804,-500.0,0.00040788,21]
[314143297,1708019498814,-151.021518,0.00040798,20]
[314143298,1708019498826,-247.25209876,0.000408,30]
[314143299,1708019498835,-2998.41,0.000408,7]
[314143300,1708019498845,-2160.89,0.000408,7]
[314143301,1708019498855,-384.30628236,0.000408,14]
[314143302,1708019498865,-200.0,0.000408,16]
[314143303,1708019498876,-151.18119458,0.00040812,30]
[314143304,1708019498886,-150.0,0.00040813,120]
[314143305,1708019498896,-6658.31173517,0.00040814,14]
[314143306,1708019498906,-500.0,0.00040821,7]
[314143307,1708019498916,-541.83,0.00040821,7]
[314143308,1708019498926,-500.0,0.00040821,7]
[314143309,1708019498936,-500.0,0.00040821,7]
[314143310,1708019498950,-530.12,0.00040821,7]
[314143311,1708019498960,-856.02,0.00040821,7]
[314143312,1708019498973,-500.0,0.00040821,7]
[314143313,1708019498983,-500.0,0.00040821,7]
[314143314,1708019498992,-500.0,0.00040821,7]
[314143315,1708019499002,-500.0,0.00040821,7]
[314143316,1708019499012,-500.0,0.00040821,7]
[314143317,1708019499022,-203.01,0.00040821,7]
[314143318,1708019499031,-500.0,0.00040821,7]
[314143319,1708019499041,-550.0,0.00040821,7]
[314143320,1708019499051,-756.7,0.00040821,7]
[314143321,1708019499060,-704.22,0.00040821,7]
[314143322,1708019499071,-500.0,0.00040821,7]
[314143323,1708019499081,-500.0,0.00040821,7]
[314143324,1708019499091,-1361.43,0.00040821,7]
[314143325,1708019499101,-535.85664598,0.00040821,7]
[314143326,1708019499112,-500.0,0.00040821,7]
[314143327,1708019499122,-500.0,0.00040821,7]
[314143328,1708019499133,-1000.0,0.00040821,7]
[314143329,1708019499143,-500.0,0.00040821,7]
[314143330,1708019499153,-1271.29,0.00040821,7]
[314143331,1708019499163,-500.0,0.00040821,7]
[314143332,1708019499174,-598.49,0.00040821,7]
[314143333,1708019499185,-500.0,0.00040821,7]
[314143334,1708019499195,-974.33,0.00040821,7]
[314143335,1708019499205,-500.0,0.00040821,7]
[314143336,1708019499215,-500.0,0.00040821,7]
[314143337,1708019499226,-500.0,0.00040821,7]
[314143338,1708019499235,-500.0,0.00040821,7]